[Event "*** Titled Tuesday Blitz"]
[Site "Chess.com"]
[Date "2020.02.04"]
[Round "6"]
[White "Valk4"]
[Black "JozefKneht"]
[Result "1/2-1/2"]
[WhiteElo "2279"]
[BlackElo "2428"]
[TimeControl "180+2"]
[EndTime "14:15:09 PST"]
[Termination "Game drawn by agreement"]

1. e4 {[%clk 0:03:01.5]} 1... c6 {[%clk 0:03:01.1]} 2. d4 {[%clk 0:03:01.7]}
2... d5 {[%clk 0:03:03]} 3. e5 {[%clk 0:03:02.9]} 3... Bf5 {[%clk 0:03:03.4]} 4.
Nf3 {[%clk 0:03:04]} 4... e6 {[%clk 0:03:04]} 5. Be2 {[%clk 0:03:05.4]} 5... Be7
{[%clk 0:03:03]} 6. O-O {[%clk 0:03:04.9]} 6... Nd7 {[%clk 0:03:03.2]} 7. Nbd2
{[%clk 0:03:01.5]} 7... h5 {[%clk 0:03:04.1]} 8. a4 {[%clk 0:02:58.2]} 8... Nh6
{[%clk 0:03:04.6]} 9. a5 {[%clk 0:02:57.5]} 9... Bg6 {[%clk 0:03:05.3]} 10. c4
{[%clk 0:02:57.8]} 10... dxc4 {[%clk 0:03:06.4]} 11. Nxc4 {[%clk 0:02:57.2]}
11... Nf5 {[%clk 0:03:07.4]} 12. Qb3 {[%clk 0:02:40.1]} 12... Qc7 {[%clk
0:03:05]} 13. Rd1 {[%clk 0:02:38.6]} 13... h4 {[%clk 0:03:05.4]} 14. h3 {[%clk
0:02:34]} 14... Bh5 {[%clk 0:03:01]} 15. Bf4 {[%clk 0:02:09.9]} 15... Bxf3
{[%clk 0:02:52.7]} 16. Bxf3 {[%clk 0:02:09]} 16... O-O {[%clk 0:02:53.2]} 17.
Be4 {[%clk 0:01:31.3]} 17... g6 {[%clk 0:02:42]} 18. Ne3 {[%clk 0:01:19.5]}
18... Rfd8 {[%clk 0:02:31.8]} 1/2-1/2

[Event "*** Titled Tuesday Blitz"]
[Site "Chess.com"]
[Date "2020.02.04"]
[Round "6"]
[White "Astaneh"]
[Black "isla88"]
[Result "1-0"]
[WhiteElo "2535"]
[BlackElo "2333"]
[TimeControl "180+2"]
[EndTime "14:15:33 PST"]
[Termination "Astaneh won by resignation"]

1. e4 {[%clk 0:03:01.9]} 1... c5 {[%clk 0:02:59.6]} 2. Nf3 {[%clk 0:03:03.1]}
2... Nc6 {[%clk 0:02:59.7]} 3. Bb5 {[%clk 0:03:04.1]} 3... g6 {[%clk 0:02:58.4]}
4. Bxc6 {[%clk 0:03:04.1]} 4... dxc6 {[%clk 0:02:58.7]} 5. O-O {[%clk 0:03:06]}
5... Bg7 {[%clk 0:02:59.5]} 6. Re1 {[%clk 0:03:06.9]} 6... e5 {[%clk 0:02:59.6]}
7. Na3 {[%clk 0:03:07.2]} 7... Qc7 {[%clk 0:02:59]} 8. Nc4 {[%clk 0:03:08.1]}
8... Be6 {[%clk 0:02:55.9]} 9. d3 {[%clk 0:03:08.5]} 9... Rd8 {[%clk 0:02:55.8]}
10. Qe2 {[%clk 0:03:09]} 10... Ne7 {[%clk 0:02:52]} 11. a4 {[%clk 0:03:09.3]}
11... O-O {[%clk 0:02:47.6]} 12. a5 {[%clk 0:03:09.7]} 12... b5 {[%clk
0:02:44.4]} 13. axb6 {[%clk 0:03:10.2]} 13... axb6 {[%clk 0:02:45.3]} 14. Bg5
{[%clk 0:03:06.5]} 14... f6 {[%clk 0:02:37.8]} 15. Bh4 {[%clk 0:03:06.8]} 15...
b5 {[%clk 0:02:36.3]} 16. Ncd2 {[%clk 0:03:04.7]} 16... g5 {[%clk 0:02:33.9]}
17. Bg3 {[%clk 0:03:05.8]} 17... Ng6 {[%clk 0:02:34.8]} 18. Nb3 {[%clk
0:03:05.5]} 18... c4 {[%clk 0:02:19.1]} 19. Nc5 {[%clk 0:03:05.5]} 19... Bf7
{[%clk 0:01:59.6]} 20. d4 {[%clk 0:03:06.8]} 20... Qe7 {[%clk 0:01:52.8]} 21. c3
{[%clk 0:03:03.3]} 21... h5 {[%clk 0:01:33.8]} 22. h3 {[%clk 0:03:00]} 22... Nf4
{[%clk 0:01:27.5]} 23. Bxf4 {[%clk 0:03:00.4]} 23... gxf4 {[%clk 0:01:28.4]} 24.
Rad1 {[%clk 0:02:48.5]} 24... Kh7 {[%clk 0:01:20.1]} 25. Nh4 {[%clk 0:02:48.9]}
25... Bg6 {[%clk 0:01:11.2]} 26. g4 {[%clk 0:02:34.1]} 26... fxg3 {[%clk
0:01:08]} 27. fxg3 {[%clk 0:02:36]} 27... f5 {[%clk 0:01:03.4]} 28. exf5 {[%clk
0:02:33.8]} 28... Bxf5 {[%clk 0:01:03.2]} 29. Qxh5+ {[%clk 0:02:34.1]} 29... Bh6
{[%clk 0:00:55.2]} 30. Nxf5 {[%clk 0:02:36]} 30... Rf6 {[%clk 0:00:53.6]} 31.
Nxe7 {[%clk 0:02:36.2]} 1-0

[Event "*** Titled Tuesday Blitz"]
[Site "Chess.com"]
[Date "2020.02.04"]
[Round "6"]
[White "cottage_cheese"]
[Black "ChessBitl"]
[Result "1-0"]
[WhiteElo "2304"]
[BlackElo "2349"]
[TimeControl "180+2"]
[EndTime "14:15:52 PST"]
[Termination "cottage_cheese won by checkmate"]

1. e4 {[%clk 0:03:00.4]} 1... c5 {[%clk 0:02:58.4]} 2. Nf3 {[%clk 0:03:00.5]}
2... Nc6 {[%clk 0:02:59.9]} 3. Bb5 {[%clk 0:03:01]} 3... Qc7 {[%clk 0:03:00.4]}
4. Nc3 {[%clk 0:02:59.2]} 4... e6 {[%clk 0:03:01.6]} 5. Bxc6 {[%clk 0:02:59.9]}
5... Qxc6 {[%clk 0:03:02.4]} 6. d4 {[%clk 0:03:01.8]} 6... cxd4 {[%clk
0:03:02.4]} 7. Nxd4 {[%clk 0:03:03.7]} 7... Qc7 {[%clk 0:03:03.7]} 8. O-O {[%clk
0:03:04.7]} 8... a6 {[%clk 0:03:04.8]} 9. Qd2 {[%clk 0:02:51.5]} 9... Nf6 {[%clk
0:03:01.2]} 10. b3 {[%clk 0:02:51.2]} 10... d6 {[%clk 0:02:59.4]} 11. Bb2 {[%clk
0:02:46.2]} 11... b5 {[%clk 0:02:59.6]} 12. Rfe1 {[%clk 0:02:24.9]} 12... Bb7
{[%clk 0:02:59.6]} 13. f3 {[%clk 0:02:23.6]} 13... Be7 {[%clk 0:03:00.4]} 14. a4
{[%clk 0:02:16.5]} 14... bxa4 {[%clk 0:02:40.1]} 15. Rxa4 {[%clk 0:02:06.1]}
15... O-O {[%clk 0:02:42]} 16. Rea1 {[%clk 0:01:22.3]} 16... Rfc8 {[%clk
0:02:41.6]} 17. Rc4 {[%clk 0:01:22.3]} 17... Qb6 {[%clk 0:02:40.8]} 18. Rxc8+
{[%clk 0:01:13.4]} 18... Rxc8 {[%clk 0:02:41.4]} 19. Kh1 {[%clk 0:01:13.9]}
19... d5 {[%clk 0:02:32]} 20. exd5 {[%clk 0:01:05]} 20... Nxd5 {[%clk
0:02:32.3]} 21. Nxd5 {[%clk 0:00:55.2]} 21... Bxd5 {[%clk 0:02:34.2]} 22. c4
{[%clk 0:00:53.3]} 22... Bb7 {[%clk 0:02:36.1]} 23. Qc2 {[%clk 0:00:28.8]} 23...
Bd5 {[%clk 0:02:38]} 24. Qc3 {[%clk 0:00:12.5]} 24... Bb7 {[%clk 0:02:39.9]} 25.
Nxe6 {[%clk 0:00:09.7]} 25... Rd8 {[%clk 0:02:41.8]} 26. Qxg7# {[%clk
0:00:10.2]} 1-0

[Event "*** Titled Tuesday Blitz"]
[Site "Chess.com"]
[Date "2020.02.04"]
[Round "6"]
[White "Carnivoras"]
[Black "VladDobrov"]
[Result "0-1"]
[WhiteElo "2556"]
[BlackElo "2898"]
[TimeControl "180+2"]
[EndTime "14:15:56 PST"]
[Termination "VladDobrov won by resignation"]

1. d4 {[%clk 0:03:01.9]} 1... Nf6 {[%clk 0:02:59.6]} 2. Nf3 {[%clk 0:03:02.9]}
2... e6 {[%clk 0:02:56.4]} 3. Bf4 {[%clk 0:03:03.5]} 3... c5 {[%clk 0:02:56.3]}
4. e3 {[%clk 0:03:04.2]} 4... Nc6 {[%clk 0:02:57.2]} 5. c3 {[%clk 0:03:05]} 5...
d5 {[%clk 0:02:57.6]} 6. Nbd2 {[%clk 0:03:05.7]} 6... Nh5 {[%clk 0:02:58.2]} 7.
Bg5 {[%clk 0:03:03.8]} 7... Qb6 {[%clk 0:02:58.9]} 8. Qb3 {[%clk 0:03:04.3]}
8... h6 {[%clk 0:02:59.9]} 9. Bh4 {[%clk 0:03:04.4]} 9... g5 {[%clk 0:03:00.8]}
10. Bg3 {[%clk 0:03:05.3]} 10... Nxg3 {[%clk 0:03:02]} 11. hxg3 {[%clk
0:03:06.2]} 11... Bg7 {[%clk 0:03:03.3]} 12. Be2 {[%clk 0:02:58.7]} 12... Bd7
{[%clk 0:03:02.8]} 13. O-O {[%clk 0:02:55.7]} 13... g4 {[%clk 0:02:52.4]} 14.
Ne1 {[%clk 0:02:52.2]} 14... h5 {[%clk 0:02:51.2]} 15. dxc5 {[%clk 0:02:48.5]}
15... Qxc5 {[%clk 0:02:51]} 16. Nd3 {[%clk 0:02:09.7]} 16... Qe7 {[%clk
0:02:50.4]} 17. e4 {[%clk 0:01:52.5]} 17... d4 {[%clk 0:02:47.6]} 18. Nc4 {[%clk
0:01:41.2]} 18... b5 {[%clk 0:02:40.9]} 19. Qxb5 {[%clk 0:01:31.6]} 19... dxc3
{[%clk 0:02:39.9]} 20. bxc3 {[%clk 0:01:31.4]} 20... Bxc3 {[%clk 0:02:36]} 21.
Rae1 {[%clk 0:00:40.5]} 21... Nd4 {[%clk 0:02:32.6]} 22. Qb7 {[%clk 0:00:36]}
22... Bc6 {[%clk 0:02:28.1]} 23. Qa6 {[%clk 0:00:29.7]} 23... O-O {[%clk
0:02:14.2]} 24. e5 {[%clk 0:00:29.8]} 24... Bb5 {[%clk 0:02:10.4]} 25. Qd6
{[%clk 0:00:28.7]} 25... Qxd6 {[%clk 0:02:11.3]} 26. Nxd6 {[%clk 0:00:30.5]}
26... Nxe2+ {[%clk 0:02:12.5]} 0-1

[Event "*** Titled Tuesday Blitz"]
[Site "Chess.com"]
[Date "2020.02.04"]
[Round "6"]
[White "reigningmvp"]
[Black "MateusViageiro"]
[Result "1-0"]
[WhiteElo "2335"]
[BlackElo "2185"]
[TimeControl "180+2"]
[EndTime "14:16:01 PST"]
[Termination "reigningmvp won by resignation"]

1. Nf3 {[%clk 0:03:01.9]} 1... Nf6 {[%clk 0:02:59.6]} 2. g3 {[%clk 0:03:03.5]}
2... e6 {[%clk 0:03:01.5]} 3. Bg2 {[%clk 0:03:05.2]} 3... b6 {[%clk 0:03:02.8]}
4. O-O {[%clk 0:03:06.5]} 4... Bb7 {[%clk 0:03:03.9]} 5. d3 {[%clk 0:03:08.2]}
5... c5 {[%clk 0:03:04.8]} 6. e4 {[%clk 0:03:09.3]} 6... d6 {[%clk 0:03:05]} 7.
Re1 {[%clk 0:03:09.5]} 7... Be7 {[%clk 0:03:06]} 8. Nh4 {[%clk 0:03:10.9]} 8...
O-O {[%clk 0:03:06.7]} 9. e5 {[%clk 0:03:12.4]} 9... Nd5 {[%clk 0:03:06.9]} 10.
c4 {[%clk 0:03:12.9]} 10... dxe5 {[%clk 0:03:06.1]} 11. cxd5 {[%clk 0:03:13.2]}
11... Bxd5 {[%clk 0:03:07]} 12. Bxd5 {[%clk 0:03:13.4]} 12... Qxd5 {[%clk
0:03:05]} 13. Nf3 {[%clk 0:03:12.5]} 13... Bf6 {[%clk 0:03:04.5]} 14. Nc3 {[%clk
0:03:13.2]} 14... Qd6 {[%clk 0:03:04.4]} 15. Ne4 {[%clk 0:03:13.3]} 15... Qe7
{[%clk 0:03:05.3]} 16. Nxf6+ {[%clk 0:03:14.5]} 16... gxf6 {[%clk 0:03:06.4]}
17. Bh6 {[%clk 0:03:10.6]} 17... Rd8 {[%clk 0:03:06.5]} 18. Nd2 {[%clk
0:03:07.5]} 18... f5 {[%clk 0:03:05]} 19. Rxe5 {[%clk 0:02:58.1]} 19... f6
{[%clk 0:03:03.8]} 20. Re1 {[%clk 0:02:51.1]} 20... Rxd3 {[%clk 0:03:03.7]} 21.
Qe2 {[%clk 0:02:51.4]} 21... Rd6 {[%clk 0:03:02.8]} 22. Qf3 {[%clk 0:02:47.9]}
22... Nc6 {[%clk 0:03:02.8]} 23. Nc4 {[%clk 0:02:40.9]} 23... Rc8 {[%clk
0:03:02.8]} 24. Nxd6 {[%clk 0:02:41]} 24... Qxd6 {[%clk 0:03:04.7]} 25. Rad1
{[%clk 0:02:40.8]} 25... Nd4 {[%clk 0:03:05.7]} 26. Qg2 {[%clk 0:02:30.5]} 26...
e5 {[%clk 0:03:00.9]} 27. Be3 {[%clk 0:02:29.8]} 27... Kh8 {[%clk 0:02:58.4]}
28. Bxd4 {[%clk 0:02:29.5]} 28... cxd4 {[%clk 0:02:59.4]} 29. Rc1 {[%clk
0:02:30]} 29... Rg8 {[%clk 0:02:58.7]} 30. Rc6 {[%clk 0:02:28.9]} 30... Qe7
{[%clk 0:02:57.3]} 31. Qd5 {[%clk 0:02:28.4]} 31... Rd8 {[%clk 0:02:56.1]} 32.
Qe6 {[%clk 0:02:26.6]} 32... Qxe6 {[%clk 0:02:56.6]} 33. Rxe6 {[%clk 0:02:28]}
33... Kg7 {[%clk 0:02:54.2]} 34. Re7+ {[%clk 0:02:29.1]} 34... Kg6 {[%clk
0:02:55.2]} 35. Rxa7 {[%clk 0:02:30.1]} 35... d3 {[%clk 0:02:56.3]} 36. Rd1
{[%clk 0:02:30.4]} 36... e4 {[%clk 0:02:57]} 37. Re7 {[%clk 0:02:31.2]} 37...
Ra8 {[%clk 0:02:56.1]} 38. a3 {[%clk 0:02:32.3]} 38... Rc8 {[%clk 0:02:56.3]}
39. f3 {[%clk 0:02:24.4]} 39... Rc4 {[%clk 0:02:53]} 40. g4 {[%clk 0:02:22.7]}
40... exf3 {[%clk 0:02:51.7]} 41. gxf5+ {[%clk 0:02:23.8]} 41... Kxf5 {[%clk
0:02:51.7]} 42. Rxd3 {[%clk 0:02:25.4]} 42... Rg4+ {[%clk 0:02:48]} 43. Kf2
{[%clk 0:02:26]} 43... Rg2+ {[%clk 0:02:49.7]} 44. Kxf3 {[%clk 0:02:27.3]} 44...
Rxb2 {[%clk 0:02:51.6]} 45. Re2 {[%clk 0:02:20.9]} 45... Rb1 {[%clk 0:02:50.2]}
46. h4 {[%clk 0:02:20.3]} 46... h5 {[%clk 0:02:48.9]} 47. Rd5+ {[%clk
0:02:19.2]} 47... Kg6 {[%clk 0:02:49.8]} 48. Rg2+ {[%clk 0:02:20.9]} 48... Kf7
{[%clk 0:02:51.7]} 49. Rxh5 {[%clk 0:02:20.5]} 49... Rb3+ {[%clk 0:02:52.5]} 50.
Kg4 {[%clk 0:02:21.7]} 50... Rxa3 {[%clk 0:02:54.4]} 51. Rb5 {[%clk 0:02:22]}
51... Ra4+ {[%clk 0:02:54]} 52. Kh5 {[%clk 0:02:23]} 52... Ra5 {[%clk
0:02:54.5]} 53. Rxa5 {[%clk 0:02:22.6]} 53... bxa5 {[%clk 0:02:55.4]} 54. Ra2
{[%clk 0:02:24.3]} 54... f5 {[%clk 0:02:56.3]} 55. Rxa5 {[%clk 0:02:25.7]} 55...
f4 {[%clk 0:02:58.2]} 56. Rf5+ {[%clk 0:02:26.1]} 56... Ke6 {[%clk 0:03:00.1]}
57. Rxf4 {[%clk 0:02:27.6]} 1-0

[Event "*** Titled Tuesday Blitz"]
[Site "Chess.com"]
[Date "2020.02.04"]
[Round "6"]
[White "Grandelicious"]
[Black "Konavets"]
[Result "0-1"]
[WhiteElo "2708"]
[BlackElo "3019"]
[TimeControl "180+2"]
[EndTime "14:16:33 PST"]
[Termination "Konavets won by resignation"]

1. Nf3 {[%clk 0:03:01.9]} 1... Nf6 {[%clk 0:02:59.8]} 2. g3 {[%clk 0:03:02.4]}
2... g6 {[%clk 0:02:59.8]} 3. Bg2 {[%clk 0:03:02.4]} 3... Bg7 {[%clk 0:03:01.7]}
4. c4 {[%clk 0:03:03.9]} 4... O-O {[%clk 0:03:03.6]} 5. Nc3 {[%clk 0:03:04.1]}
5... d6 {[%clk 0:03:05.5]} 6. O-O {[%clk 0:03:04.7]} 6... Nbd7 {[%clk
0:03:07.4]} 7. d4 {[%clk 0:03:05.9]} 7... e5 {[%clk 0:03:08.9]} 8. e4 {[%clk
0:03:04.8]} 8... exd4 {[%clk 0:03:10.2]} 9. Nxd4 {[%clk 0:03:05.6]} 9... Re8
{[%clk 0:03:12.1]} 10. h3 {[%clk 0:02:54.8]} 10... a6 {[%clk 0:03:12.6]} 11. a4
{[%clk 0:02:52.7]} 11... Nc5 {[%clk 0:03:10.3]} 12. Re1 {[%clk 0:02:53.1]} 12...
a5 {[%clk 0:03:11.8]} 13. Bf4 {[%clk 0:02:46.7]} 13... Nfd7 {[%clk 0:03:12]} 14.
Rb1 {[%clk 0:02:40.7]} 14... Ne5 {[%clk 0:03:12.7]} 15. Bf1 {[%clk 0:02:29.3]}
15... h5 {[%clk 0:02:54.2]} 16. Be3 {[%clk 0:02:23.1]} 16... h4 {[%clk
0:02:53.6]} 17. f4 {[%clk 0:02:11.6]} 17... Ned7 {[%clk 0:02:52.9]} 18. Bf2
{[%clk 0:02:00.9]} 18... hxg3 {[%clk 0:02:51.6]} 19. Bxg3 {[%clk 0:02:02.8]}
19... Nf6 {[%clk 0:02:51.3]} 20. Bg2 {[%clk 0:01:59.6]} 20... Nh5 {[%clk
0:02:52.5]} 21. Bh2 {[%clk 0:02:01]} 21... Qf6 {[%clk 0:02:47.9]} 22. e5 {[%clk
0:01:38.8]} 22... dxe5 {[%clk 0:02:48.6]} 23. Nd5 {[%clk 0:01:24.9]} 23... Qd8
{[%clk 0:02:44.3]} 24. fxe5 {[%clk 0:01:21.9]} 24... c6 {[%clk 0:02:45]} 25. Nc3
{[%clk 0:01:08.6]} 25... Qh4 {[%clk 0:02:45.1]} 26. Nf3 {[%clk 0:00:50.4]} 26...
Qxc4 {[%clk 0:02:46]} 27. Bf1 {[%clk 0:00:37]} 27... Qb4 {[%clk 0:02:43.3]} 28.
Ng5 {[%clk 0:00:24.6]} 28... Bf5 {[%clk 0:02:42.6]} 29. Qf3 {[%clk 0:00:16.6]}
29... Qh4 {[%clk 0:02:24.1]} 30. Nge4 {[%clk 0:00:14.4]} 30... Nxe4 {[%clk
0:02:25.3]} 31. Nxe4 {[%clk 0:00:16]} 31... Bxe5 {[%clk 0:02:27]} 32. Bxe5
{[%clk 0:00:14.8]} 32... Rxe5 {[%clk 0:02:28.9]} 33. Nd6 {[%clk 0:00:16]} 33...
Rxe1 {[%clk 0:02:25.1]} 0-1

[Event "*** Titled Tuesday Blitz"]
[Site "Chess.com"]
[Date "2020.02.04"]
[Round "6"]
[White "lelya96"]
[Black "Sutormin_DA"]
[Result "1/2-1/2"]
[WhiteElo "2469"]
[BlackElo "2592"]
[TimeControl "180+2"]
[EndTime "14:16:35 PST"]
[Termination "Game drawn by agreement"]

1. e4 {[%clk 0:03:01]} 1... e5 {[%clk 0:02:51.5]} 2. Nf3 {[%clk 0:03:01.9]} 2...
Nc6 {[%clk 0:02:45.2]} 3. Bb5 {[%clk 0:03:02.4]} 3... Nf6 {[%clk 0:02:45.3]} 4.
O-O {[%clk 0:03:02.7]} 4... Nxe4 {[%clk 0:02:46.1]} 5. Re1 {[%clk 0:03:03.9]}
5... Nd6 {[%clk 0:02:46.5]} 6. Nxe5 {[%clk 0:03:04.9]} 6... Nxe5 {[%clk
0:02:47.8]} 7. Rxe5+ {[%clk 0:03:05.5]} 7... Be7 {[%clk 0:02:48.7]} 8. Bf1
{[%clk 0:03:06]} 8... Kf8 {[%clk 0:02:47.3]} 9. d4 {[%clk 0:03:05.4]} 9... Ne8
{[%clk 0:02:45.7]} 10. d5 {[%clk 0:03:04.3]} 10... d6 {[%clk 0:02:46.3]} 11. Re1
{[%clk 0:03:04.1]} 11... Bf6 {[%clk 0:02:47.6]} 12. Nd2 {[%clk 0:03:00]} 12...
Bf5 {[%clk 0:02:37.2]} 13. Ne4 {[%clk 0:02:50.7]} 13... Bxe4 {[%clk 0:01:54.5]}
14. Rxe4 {[%clk 0:02:49]} 14... g6 {[%clk 0:01:55.5]} 15. Qe1 {[%clk 0:02:39.1]}
15... h5 {[%clk 0:01:49]} 16. c3 {[%clk 0:02:27.4]} 16... Ng7 {[%clk 0:01:49.9]}
17. Be3 {[%clk 0:02:23.4]} 17... Nf5 {[%clk 0:01:50.7]} 18. Bd4 {[%clk
0:02:15.4]} 18... Nxd4 {[%clk 0:01:51.6]} 19. cxd4 {[%clk 0:02:16.6]} 19... Kg7
{[%clk 0:01:50.6]} 20. Rc1 {[%clk 0:02:16.7]} 20... Qd7 {[%clk 0:01:48.5]} 21.
Qc3 {[%clk 0:02:14.4]} 21... Qf5 {[%clk 0:01:36.1]} 22. Rce1 {[%clk 0:01:33]}
22... Rac8 {[%clk 0:01:16.5]} 23. Bc4 {[%clk 0:01:32.3]} 23... c6 {[%clk
0:01:07.9]} 24. Qb3 {[%clk 0:01:04.9]} 1/2-1/2

[Event "*** Titled Tuesday Blitz"]
[Site "Chess.com"]
[Date "2020.02.04"]
[Round "6"]
[White "secretsuperstar7"]
[Black "zurzan"]
[Result "1-0"]
[WhiteElo "2219"]
[BlackElo "1948"]
[TimeControl "180+2"]
[EndTime "14:16:45 PST"]
[Termination "secretsuperstar7 won by resignation"]

1. e4 {[%clk 0:02:57.6]} 1... Nf6 {[%clk 0:03:00.3]} 2. e5 {[%clk 0:02:52.7]}
2... Nd5 {[%clk 0:03:01.2]} 3. d4 {[%clk 0:02:51.5]} 3... d6 {[%clk 0:03:02.4]}
4. c4 {[%clk 0:02:51.4]} 4... Nb6 {[%clk 0:03:02.9]} 5. exd6 {[%clk 0:02:45.1]}
5... cxd6 {[%clk 0:03:04.8]} 6. Nf3 {[%clk 0:02:44.4]} 6... g6 {[%clk
0:03:05.7]} 7. Nc3 {[%clk 0:02:42.8]} 7... Bg7 {[%clk 0:03:06.6]} 8. Be2 {[%clk
0:02:43.2]} 8... O-O {[%clk 0:03:07.3]} 9. O-O {[%clk 0:02:42.9]} 9... Bf5
{[%clk 0:02:56.7]} 10. Be3 {[%clk 0:02:40.7]} 10... Nc6 {[%clk 0:02:53.1]} 11.
a3 {[%clk 0:02:20.3]} 11... d5 {[%clk 0:02:49.7]} 12. c5 {[%clk 0:02:08.9]}
12... Nc4 {[%clk 0:02:49]} 13. Bxc4 {[%clk 0:02:08]} 13... dxc4 {[%clk
0:02:49.7]} 14. b3 {[%clk 0:01:57.1]} 14... Bd3 {[%clk 0:02:50]} 15. Re1 {[%clk
0:01:57.6]} 15... Nxd4 {[%clk 0:02:34.9]} 16. Nxd4 {[%clk 0:01:49.2]} 16... Bxd4
{[%clk 0:02:35.6]} 17. Bxd4 {[%clk 0:01:50.5]} 17... Qxd4 {[%clk 0:02:35.9]} 18.
Qd2 {[%clk 0:01:41.2]} 18... e5 {[%clk 0:02:29]} 19. b4 {[%clk 0:01:34.5]} 19...
Rad8 {[%clk 0:02:24.2]} 20. Nb5 {[%clk 0:01:33.8]} 20... Qg4 {[%clk 0:01:59.5]}
21. Nd6 {[%clk 0:01:27]} 21... b6 {[%clk 0:01:45.2]} 22. Rxe5 {[%clk 0:01:23.9]}
22... bxc5 {[%clk 0:01:40.9]} 23. bxc5 {[%clk 0:01:24.4]} 23... Qd4 {[%clk
0:01:28.8]} 24. Rae1 {[%clk 0:01:14.2]} 24... f6 {[%clk 0:01:20.7]} 25. Re7
{[%clk 0:01:01.4]} 25... Qxc5 {[%clk 0:01:17.6]} 26. Qh6 {[%clk 0:01:01.4]} 1-0

[Event "*** Titled Tuesday Blitz"]
[Site "Chess.com"]
[Date "2020.02.04"]
[Round "6"]
[White "stoleriu"]
[Black "czasnaszachy"]
[Result "1-0"]
[WhiteElo "2505"]
[BlackElo "2307"]
[TimeControl "180+2"]
[EndTime "14:17:13 PST"]
[Termination "stoleriu won by resignation"]

1. e4 {[%clk 0:03:01.9]} 1... c5 {[%clk 0:03:00.3]} 2. Nc3 {[%clk 0:03:02.4]}
2... Nc6 {[%clk 0:03:00.2]} 3. Bb5 {[%clk 0:03:02.7]} 3... Nd4 {[%clk
0:03:01.1]} 4. Bc4 {[%clk 0:03:03]} 4... g6 {[%clk 0:03:02.3]} 5. Nf3 {[%clk
0:03:03.8]} 5... Bg7 {[%clk 0:03:03.4]} 6. Nxd4 {[%clk 0:03:05.3]} 6... cxd4
{[%clk 0:03:04.6]} 7. Qf3 {[%clk 0:03:06.9]} 7... e6 {[%clk 0:03:04.2]} 8. Nb5
{[%clk 0:03:07.7]} 8... d6 {[%clk 0:03:04.5]} 9. Qa3 {[%clk 0:03:08.9]} 9... Ke7
{[%clk 0:03:04.9]} 10. c3 {[%clk 0:03:09.8]} 10... Nf6 {[%clk 0:02:39.9]} 11. e5
{[%clk 0:03:07.5]} 11... Ne8 {[%clk 0:02:39.4]} 12. cxd4 {[%clk 0:02:50.4]}
12... a6 {[%clk 0:02:38.4]} 13. Nxd6 {[%clk 0:02:21.4]} 13... Nxd6 {[%clk
0:02:38.6]} 14. d3 {[%clk 0:02:22.5]} 14... Ke8 {[%clk 0:02:27.1]} 15. exd6
{[%clk 0:02:20.2]} 15... Bxd4 {[%clk 0:02:20.3]} 16. Bxe6 {[%clk 0:02:04.4]}
16... Qf6 {[%clk 0:01:51.3]} 17. d7+ {[%clk 0:01:08.9]} 17... Bxd7 {[%clk
0:01:52.3]} 18. Bxd7+ {[%clk 0:01:10.7]} 18... Kxd7 {[%clk 0:01:53.7]} 19. O-O
{[%clk 0:01:11.8]} 19... Rhe8 {[%clk 0:01:45.1]} 20. Bg5 {[%clk 0:01:07.6]}
20... Qd6 {[%clk 0:01:32.3]} 21. Qb3 {[%clk 0:01:04.9]} 21... f6 {[%clk
0:01:13]} 22. Qxb7+ {[%clk 0:00:56.2]} 22... Qc7 {[%clk 0:01:13.6]} 23. Qd5+
{[%clk 0:00:54.4]} 23... Qd6 {[%clk 0:01:13.7]} 24. Qb7+ {[%clk 0:00:54.7]}
24... Qc7 {[%clk 0:01:14.4]} 25. Qf3 {[%clk 0:00:46.6]} 25... Qc6 {[%clk
0:00:59.9]} 26. Qg4+ {[%clk 0:00:45.5]} 1-0

[Event "*** Titled Tuesday Blitz"]
[Site "Chess.com"]
[Date "2020.02.04"]
[Round "6"]
[White "Gahan-MG"]
[Black "Vuk2000"]
[Result "1-0"]
[WhiteElo "2467"]
[BlackElo "2668"]
[TimeControl "180+2"]
[EndTime "14:17:17 PST"]
[Termination "Gahan-MG won on time"]

1. e4 {[%clk 0:03:01.9]} 1... e6 {[%clk 0:03:01.3]} 2. b3 {[%clk 0:03:02.5]}
2... d5 {[%clk 0:03:02.7]} 3. Bb2 {[%clk 0:03:03.6]} 3... dxe4 {[%clk
0:03:03.7]} 4. Nc3 {[%clk 0:03:04.4]} 4... Nf6 {[%clk 0:03:05.1]} 5. g4 {[%clk
0:03:05.2]} 5... Nc6 {[%clk 0:02:53.7]} 6. Bg2 {[%clk 0:03:05.8]} 6... Be7
{[%clk 0:02:45.3]} 7. Nxe4 {[%clk 0:03:05.6]} 7... Nxe4 {[%clk 0:02:46.1]} 8.
Bxe4 {[%clk 0:03:07.5]} 8... Bf6 {[%clk 0:02:47.2]} 9. c3 {[%clk 0:02:56.8]}
9... Ne5 {[%clk 0:02:46.9]} 10. d4 {[%clk 0:02:56.5]} 10... Ng6 {[%clk 0:02:43]}
11. Nf3 {[%clk 0:02:55]} 11... Qd6 {[%clk 0:02:25.2]} 12. g5 {[%clk 0:02:52.4]}
12... Be7 {[%clk 0:02:22.3]} 13. h4 {[%clk 0:02:53.5]} 13... Nf4 {[%clk
0:02:16.3]} 14. Ne5 {[%clk 0:02:52.1]} 14... Ng6 {[%clk 0:02:07.2]} 15. Bxg6
{[%clk 0:02:26.4]} 15... hxg6 {[%clk 0:02:05.3]} 16. Qf3 {[%clk 0:02:26.5]}
16... Rf8 {[%clk 0:01:58.6]} 17. O-O-O {[%clk 0:02:26]} 17... Qd5 {[%clk
0:01:48.2]} 18. Qe3 {[%clk 0:02:24.3]} 18... b6 {[%clk 0:01:33.8]} 19. h5 {[%clk
0:02:20.8]} 19... gxh5 {[%clk 0:01:28.2]} 20. Rxh5 {[%clk 0:02:20]} 20... Bb7
{[%clk 0:01:16.7]} 21. Rh7 {[%clk 0:02:17.8]} 21... g6 {[%clk 0:00:56.3]} 22. f3
{[%clk 0:02:13.5]} 22... Bd6 {[%clk 0:00:44.7]} 23. c4 {[%clk 0:02:04.4]} 23...
Qa5 {[%clk 0:00:45.5]} 24. Nxf7 {[%clk 0:01:54.5]} 24... Bc8 {[%clk 0:00:18.6]}
25. Qe4 {[%clk 0:01:42.4]} 25... Rxf7 {[%clk 0:00:04.8]} 26. Rh8+ {[%clk
0:01:25.4]} 26... Kd7 {[%clk 0:00:03]} 27. Qxa8 {[%clk 0:01:25.5]} 1-0